Cogmind - Beta 15 @@@ ROGUE MODE // 2025.09.25 @ 23:17:12 Player: Blue Result: Destroyed by P-70 Sage with Tesla Rifle Performance ------------- Evolutions (6) 3000 Regions Visited (17) 3400 Robots Destroyed (332) 1660 Value Destroyed (13212) 13212 Prototype IDs (43) 860 Alien Tech Used (0) 0 Bonus (5099) 5099 TOTAL SCORE: 27231 Bonus ------- High Alert Combat Kills 3567 Follower Combat Kills 251 Aligned with FarCom 300 Met Warlord at Base 500 MAIN.C Attacked Warlord 500 Friendly Fire -19 Cogmind --------- Core Integrity 0/1150 Matter 290/300 Energy 94/100 System Corruption 9% Temperature Cool (0) Movement Core (50) Location -4/Factory Parts ------- > --- POWER (3) -------- (None) > --- PROPULSION (6) --- (None) > --- UTILITY (7) ------ Enhanced Optical Array Target Analyzer > --- WEAPON (3) ------- Longsword +1 (fused) > --- INVENTORY (5) ---- Advanced Heat Sink Long-range Sensor Array Launcher Loader High-powered Shock Rifle Peak State ------------ > --- POWER ------------ Angular Momentum Engine Neutrino Core Light Quantum Reactor > --- PROPULSION ------- Armored Medium Treads Armored Medium Treads Armored Medium Treads Heavy Treads > --- UTILITY ---------- Improved Cooling System Huge Storage Unit Improved Targeting Computer Improved Launcher Guidance Computer Improved Transmission Jammer Improved Force Field Long-range Tractor Beam > --- WEAPON ----------- Mass Driver Improved Proton Missile Launcher Longsword +1 > --- INVENTORY -------- Micro Fission Core Antimatter Reactor Antimatter Reactor Advanced Heat Sink Improved Cooling System Improved Energy Well Improved Matter Compressor Enhanced Optical Array Advanced Signal Interpreter Launcher Loader Focal Shield Improved Focal Shield Long-range Proton Cannon Coil Gun Heavy Flak Cannon Hypervelocity Gauss Cannon Improved Proton Missile Launcher Improved Proton Missile Launcher Heavy Missile Launcher Smartbomb Launcher [Rating: 113] Favorites ----------- Power Neutrino Core Engine Angular Momentum Engine Power Core Neutrino Core Reactor Light Antimatter Reactor Propulsion Heavy Treads Treads Heavy Treads Leg Aluminum Leg Wheel Armored Huge Wheel Utility Huge Storage Unit Device Improved Cooling System Storage Huge Storage Unit Processor Improved Launcher Guidance Computer Hackware System Shield Protection Light Armor Plating Weapon Heavy Ion Cannon Energy Gun Heavy Laser Energy Cannon Heavy Ion Cannon Ballistic Gun Heavy Assault Rifle Ballistic Cannon Heavy Flak Cannon Launcher Improved Proton Missile Launcher Special Weapon Mining Laser Slashing Weapon Longsword +1 Build | -11 -10 -10 -9 -9 -9 -8 -8 -7 -7 -7 -6 -5 -5 -5 -5 -4 -4 ------- Run | Yrd Mat Min Mat Min Exi Min Mat Fac Low Low Fac Fac Upp Upp War Pro Fac Slots Evolved 12 | . . . 2 . . . 2 2 . . 2 2 . . . . 2 Power 2 | . . . . . . . . 1 . . . 1 . . . . . Propulsion 4 | . . . . . . . 2 . . . 1 . . . . . 1 Utility 5 | . . . 2 . . . . 1 . . . 1 . . . . 1 Weapon 1 | . . . . . . . . . . . 1 . . . . . . Parts Attached 171 | 7 4 2 19 1 . 1 17 18 3 . 15 45 7 3 4 10 15 Power 26 | 1 . 1 2 . . . 2 1 2 . 1 7 4 2 . 1 2 Engine 12 | 1 . 1 2 . . . 2 1 2 . 1 2 . . . . . Core 10 | . . . . . . . . . . . . 5 3 2 . . . Reactor 4 | . . . . . . . . . . . . . 1 . . 1 2 Propulsion 29 | 2 . . 4 . . . 5 4 . . 3 8 . . 1 2 . Treads 23 | . . . 4 . . . 3 4 . . 2 7 . . 1 2 . Leg 2 | 2 . . . . . . . . . . . . . . . . . Wheel 4 | . . . . . . . 2 . . . 1 1 . . . . . Hover . | . . . . . . . . . . . . . . . . . . Flight . | . . . . . . . . . . . . . . . . . . Utility 71 | 2 1 . 8 1 . 1 5 8 1 . 6 21 2 . 1 3 11 Device 32 | 1 . . 1 . . . 2 2 1 . 1 14 1 . . 2 7 Storage 6 | 1 . . 1 . . . . . . . 2 2 . . . . . Processor 7 | . . . . . . . . 1 . . . 1 . . . 1 4 Hackware 4 | . . . . . . . . 3 . . . 1 . . . . . Protection 22 | . 1 . 6 1 . 1 3 2 . . 3 3 1 . 1 . . Artifact . | . . . . . . . . . . . . . . . . . . Weapon 45 | 2 3 1 5 . . . 5 5 . . 5 9 1 1 2 4 2 Energy Gun 5 | . 1 . 2 . . . 1 . . . 1 . . . . . . Energy Cannon 13 | . . . 1 . . . 1 3 . . 3 3 . . . . 2 Ballistic Gun 6 | 2 . . 1 . . . 2 . . . . . . . . 1 . Ballistic Cannon 8 | . 1 . . . . . . 1 . . . 3 1 1 . 1 . Launcher 10 | . . 1 1 . . . 1 . . . 1 3 . . 1 2 . Special Weapon 2 | . 1 . . . . . . . . . . . . . 1 . . Impact Weapon . | . . . . . . . . . . . . . . . . . . Slashing Weapon 1 | . . . . . . . . 1 . . . . . . . . . Piercing Weapon . | . . . . . . . . . . . . . . . . . . Special Melee Weapon . | . . . . . . . . . . . . . . . . . . Unidentified Prototypes 13 | . . . 4 . . . 2 . . . . 4 . . 1 1 1 Corrupted Parts 1 | . . . . . . . . . . . . . . . . 1 . System Corruption 10 | . . . . . . . . . . . . . . . . 10 . Parts Lost 67 | . . . 4 1 . 1 9 4 2 . 7 11 2 . . 5 21 Power 15 | . . . . . . . 1 1 1 . 2 4 1 . . 1 4 Propulsion 8 | . . . . . . . 3 . . . . 2 . . . 1 2 Utility 29 | . . . 3 1 . 1 3 2 1 . 4 5 . . . 1 8 Weapon 15 | . . . 1 . . . 2 1 . . 1 . 1 . . 2 7 Highest Loss Streak 16 | . . . 2 1 . 1 8 2 2 . 3 5 2 . . 2 16 To Critical Strikes 1 | . . . . . . . . . . . . . . . . . 1 Average Backups 19 | . 3 8 13 18 18 19 19 21 20 18 20 21 21 22 22 22 18 Power 2 | . . . 3 5 5 5 4 3 1 1 1 1 2 2 2 2 2 Propulsion 2 | . . . 2 3 3 3 2 6 6 6 5 3 1 1 1 2 . Utility 8 | . 1 5 3 5 5 5 5 8 7 7 7 10 10 12 12 10 9 Weapon 5 | . 1 3 3 5 5 6 6 4 4 4 5 6 7 7 7 7 6 Tool/Special . | . . . . . . . . . . . . . . . . . . Unused Backups 30 | . . . . . . . 1 4 . . 4 9 . . 4 2 6 Power 4 | . . . . . . . . . . . 1 2 . . . . 1 Propulsion 4 | . . . . . . . . 2 . . . 1 . . 1 . . Utility 15 | . . . . . . . . 1 . . 1 4 . . 3 2 4 Weapon 7 | . . . . . . . 1 1 . . 2 2 . . . . 1 Tool/Special . | . . . . . . . . . . . . . . . . . . Average Slot Usage (%) 88 | . 100 100 99 100 100 100 92 86 99 100 91 84 82 77 81 72 79 Engine 7 | . 14 14 11 11 11 11 9 14 15 15 12 4 . . . 3 4 Core 4 | . . . . . . . . . . . . 11 10 6 11 6 3 Reactor 1 | . . . . . . . . . . . . . 4 5 4 . 4 Treads 17 | . . . 19 22 22 22 25 6 29 30 27 15 17 17 17 14 19 Leg 1 | . 28 28 2 . . . . . . . . . . . . . . Wheel 1 | . . . . . . . 4 11 . . 2 1 . . . . . Device 13 | . 11 . 4 11 11 11 11 15 14 15 13 16 18 17 17 11 15 Storage 7 | . 14 14 11 11 11 11 9 7 7 7 6 5 6 5 5 5 4 Processor 1 | . . . . . . . . . . . . 1 . . . 3 8 Hackware 1 | . . . . . . . . 5 7 7 3 2 . . . . . Protection 9 | . 2 14 28 22 22 22 15 7 7 7 5 4 3 5 5 5 2 Energy Cannon 8 | . . . 6 5 11 11 9 13 7 15 10 7 15 11 11 1 1 Ballistic Gun 3 | . 7 . 10 11 11 11 6 . . . . . . . . 1 2 Ballistic Cannon 3 | . 7 14 4 . . . . . 5 . . 5 . 5 . 4 5 Launcher 1 | . . 14 . 5 . . 1 . . . . . . . 4 7 4 Peak Build Rating 113 | 7 7 7 21 21 22 22 45 56 49 47 65 107 104 99 103 101 113 Average Rating 64 | 6 7 7 16 19 21 21 29 50 48 47 55 98 99 95 98 86 100 On Entrance 46 | . 7 7 7 19 21 22 22 44 47 47 47 62 95 94 99 90 101 Naked Turns . | . . . . . . . . . . . . . . . . . . Heaviest Build 182 | 14 18 19 106 105 105 105 108 122 125 125 141 175 174 162 162 168 182 Greatest Support 167 | 20 20 20 46 46 46 46 86 80 80 80 110 167 167 167 167 167 151 Greatest Overweight (x) 6 | . . . 2 2 2 2 3 6 3 1 5 2 1 . . 1 1 Average Overweight (x) . | . . . 1 2 2 2 1 1 1 1 2 . . . . . . Largest Inventory Capacity 25 | 8 8 8 25 25 25 25 25 25 25 25 25 25 25 25 25 25 25 Average Capacity 23 | 7 8 8 21 25 25 25 25 25 25 25 25 25 25 25 25 25 23 Most Carried 25 | 1 8 8 19 19 19 22 25 25 24 21 25 25 25 25 25 25 24 Average Carried 21 | . 3 8 13 18 18 20 20 24 23 21 22 24 23 24 24 24 20 Final Capacity 25 | 8 8 8 25 25 25 25 25 25 25 25 25 25 25 25 25 25 5 Final Carried 25 | 1 8 8 19 18 19 22 25 25 21 21 25 18 24 25 25 21 5 Class Distribution -------------------- 58% | Mutant 34% | Tank 3% | Scavenger-Tank Dominant Class ---------------- Mutant | -10/Materials Mutant | -10/Mines Mutant | -9/Materials Mutant | -9/Mines Mutant | -9/Exiles Mutant | -8/Mines Mutant | -8/Materials Mutant | -7/Factory Mutant | -7/Lower Caves Mutant | -7/Lower Caves Mutant | -6/Factory Mutant | -5/Factory Tank | -5/Upper Caves Tank | -5/Upper Caves Tank | -5/Warlord Tank | -4/Proximity Caves Scavenger-Tank | -4/Factory Resources | -11 -10 -10 -9 -9 -9 -8 -8 -7 -7 -7 -6 -5 -5 -5 -5 -4 -4 ----------- Run | Yrd Mat Min Mat Min Exi Min Mat Fac Low Low Fac Fac Upp Upp War Pro Fac Matter Collected 9513 | 342 63 182 850 106 . 24 409 433 206 26 222 3742 566 99 66 429 1748 Remotely 3664 | . . . . . . . . . . . . 2181 52 . . . 1431 Salvage Created 13380 | 132 108 88 1069 143 . 161 466 901 241 47 1207 3127 643 . . 1796 3251 Parts 684 | 9 8 11 92 10 . 8 31 61 7 2 54 141 33 . . 54 163 Haulers Intercepted 8 | . 1 . 3 . . . 1 . . . 1 1 . . . 1 . Recyclers Shooed 15 | . . . 5 . . . . . . . 1 4 . . . . 5 Parts Field Recycled 15 | . . . . . . . . . . . . 15 . . . . . Retrieved Matter 126 | . . . . . . . . . . . . 126 . . . . . Parts Self-Destructed 61 | . . . . . . . . . 8 . . . 29 2 . 22 . Prevented 31 | . . . . . . . . . . . . . . . . 31 . Kills | -11 -10 -10 -9 -9 -9 -8 -8 -7 -7 -7 -6 -5 -5 -5 -5 -4 -4 ------- Run | Yrd Mat Min Mat Min Exi Min Mat Fac Low Low Fac Fac Upp Upp War Pro Fac Combat Hostiles Destroyed 245 | . 1 7 30 6 . 3 12 13 5 . 20 63 17 . . 26 42 Melee 1 | . . . . . . . . . . . . . . . . . 1 Guns 9 | . 1 . 2 1 . . 3 . . . . . . . . 1 1 Cannons 122 | . . . 14 2 . 3 3 13 5 . 8 51 9 . . 6 8 AOE 90 | . . 7 14 3 . . 6 . . . 11 9 7 . . 13 20 Classes Destroyed 19 | 2 3 1 3 . . 1 . 3 1 1 1 . . . . 2 1 Worker 22 | . . . 2 . . . 1 2 . . 6 6 . . . . 5 Builder 31 | . . . 2 . . . 1 2 . . 3 5 . . . . 18 Tunneler 3 | 2 . 1 . . . . . . . . . . . . . . . Hauler 8 | . 1 . 3 . . . 1 . . . 1 1 . . . 1 . Recycler 8 | 1 . . 1 . . . . 2 . . 1 1 . . . . 2 Mechanic 1 | . . . . . . . . . . . . . . . . 1 . Operator 3 | . . . . . . . . 1 . . . 1 . . . . 1 Drone 1 | . . . . . . . . . . . . . . . . 1 . Watcher 11 | . 1 . 3 . . . 1 1 . . 1 2 . . . . 2 Swarmer 52 | . . 5 11 3 . . 3 . . . 3 8 9 . . 6 4 Grunt 119 | . 1 2 11 3 . 2 8 6 2 . 10 30 3 . . 15 26 Brawler 6 | . . . . . . 1 . . . . . 2 1 . . 1 1 Duelist 6 | . . . . . . . . . 2 . 1 . . . . 3 . Sentry 19 | . . . 8 . . . 1 1 1 . 3 3 2 . . . . Hunter 12 | . . . . . . . . 1 . . 1 6 . . . . 4 Programmer 27 | . . . . . . . . 5 . . . 14 2 . . . 6 Heavy 2 | . . . . . . . . . . . 2 . . . . . . Striker 1 | . . . . . . . . . . . . . . . . . 1 Samaritan 1 | . . . . . . . . . . 1 . . . . . . . Best Kill Streak 19 | 2 2 5 7 3 . 3 11 6 2 . 9 10 6 . . 5 19 Combat Bots Only 12 | . 1 4 6 3 . 3 7 5 2 . 5 9 6 . . 5 12 Max Kills in Single Turn 9 | 1 1 3 3 3 . 1 4 2 1 1 9 4 3 . . 3 5 Gunslinging . | . . . . . . . . . . . . . . . . . . Exploded 4 | . . 2 2 3 . . 4 . . . 4 3 3 . . 2 2 Melee 1 | . . . . . . . . . . . . . . . . . 1 Uniques/NPCs Destroyed . | . . . . . . . . . . . . . . . . . . Combat | -11 -10 -10 -9 -9 -9 -8 -8 -7 -7 -7 -6 -5 -5 -5 -5 -4 -4 -------- Run | Yrd Mat Min Mat Min Exi Min Mat Fac Low Low Fac Fac Upp Upp War Pro Fac Hostile Shots Fired 1742 | . 7 12 125 25 . 11 101 103 147 . 164 392 151 . 1 92 411 Missed 543 | . 3 5 38 6 . 2 23 32 46 . 61 88 42 . . 30 167 Hits 1199 | . 4 7 87 19 . 9 78 71 101 . 103 304 109 . 1 62 244 Melee 29 | . . . . . . 2 . . 3 . . 3 4 . . 6 11 Projectile 1170 | . 4 7 87 19 . 7 78 71 98 . 103 301 105 . 1 56 233 AOE 1 | . . . . . . . . . . . . 1 . . . . . Critical Strikes 56 | . . . 2 . . 1 4 5 4 . 3 16 . . . 5 16 Part Disruptions 4 | . . . . . . . . . . . . 1 . . . . 3 Damage Taken 17631 | . 47 67 1185 191 . 185 1307 904 1263 . 1451 4091 1477 . 103 1370 3990 Core 1971 | . 10 2 72 20 . . 153 53 103 . 44 162 92 . . 107 1153 Absorbed by Shields 4173 | . . . . . . . . 317 341 . 241 2027 340 . . . 907 Reduced by Siege Mode 188 | . . . . . . . . . . . . 174 . . . . 14 Redirected to Shielding 40 | . . . . . . . 19 16 . . . 5 . . . . . Ignored by Resistances 50 | . . . . . . . . . . . . . . . . . 50 Regen/Repaired (Parts) 342 | . . . . . . . . 52 . . . . . . 290 . . Core Remaining (%) 82 | 100 . 95 . . . 77 72 . . 77 94 . . . . 63 . Volleys Fired 588 | 18 14 5 84 8 . 8 33 50 17 3 37 161 23 . 2 44 81 Largest 3 | 2 2 1 2 2 . 2 2 2 2 2 3 3 3 . 1 3 3 Hottest 233 | 40 100 30 98 91 . 91 143 140 125 125 195 220 220 . 90 202 233 Shots Fired 1243 | 36 27 5 154 15 . 16 66 87 35 6 100 384 63 2 3 86 158 Gun 215 | 36 21 . 67 7 . 8 38 . . . 25 . . . . 3 10 Cannon 884 | . 5 . 74 7 . 8 23 84 33 6 65 374 59 2 3 58 83 Launcher 143 | . . 5 13 1 . . 5 3 2 . 10 10 4 . . 25 65 Special 1 | . 1 . . . . . . . . . . . . . . . . Kinetic 632 | 36 13 . 120 7 . 8 38 . 7 . 3 290 3 . . 29 78 Thermal 461 | . 14 . 21 7 . 8 23 84 26 6 87 84 56 2 3 32 8 Explosive 65 | . . 5 13 1 . . 5 3 2 . 7 10 4 . . . 15 Electromagnetic 85 | . . . . . . . . . . . 3 . . . . 25 57 Robot Hit Streak 23 | 2 4 3 11 12 . 18 9 10 12 4 9 21 6 . 1 9 23 Robot Miss Streak 13 | 4 4 1 3 1 . 1 3 3 2 2 2 8 4 . 1 13 7 Penetration Max 2 | . . . . . . . . . . . . 2 . . . . 1 Secondary Targets . | . . . . . . . . . . . . . . . . . . Shots Hit Robots 775 | 15 12 3 97 12 . 11 43 47 26 4 72 238 29 . 1 59 106 Core Hits 635 | 5 6 9 60 7 . 6 26 29 12 2 59 152 22 . . 67 173 Critical Kills 36 | . . . . . . . . . . . . 31 1 . . . 4 Critical Parts Destroyed 46 | . . . . . . . . . . . . 43 . . . . 3 Critical Strikes 88 | . . . 1 . . . . . . . . 76 1 . . . 10 Meltdown 1 | . . . . . . . . . . . . . 1 . . . . Destroy 81 | . . . . . . . . . . . . 74 . . . . 7 Blast 4 | . . . 1 . . . . . . . . 2 . . . . 1 Sever 2 | . . . . . . . . . . . . . . . . . 2 Melee Attacks 75 | . . . . . . . . 9 . . 10 37 . . . . 19 Impact . | . . . . . . . . . . . . . . . . . . Slashing 75 | . . . . . . . . 9 . . 10 37 . . . . 19 Piercing . | . . . . . . . . . . . . . . . . . . Sneak Attacks 2 | . . . . . . . . . . . 1 . . . . . 1 Combat Hostiles . | . . . . . . . . . . . . . . . . . . Follow-up Attacks . | . . . . . . . . . . . . . . . . . . Damage Inflicted 34812 | 159 162 427 2676 357 . 242 1272 1547 929 102 3864 7922 1821 . 37 3727 9568 Guns 2103 | 159 127 . 697 90 . 41 429 . . . 330 . . . . 59 171 Cannons 14811 | . 35 . 862 122 . 165 306 1387 673 102 1370 5955 1003 . 37 1360 1434 Explosions 17306 | . . 426 1096 138 . . 537 160 256 . 2064 1954 815 . . 2308 7552 Melee 511 | . . . . . . . . . . . 100 . . . . . 411 Ramming 81 | . . 1 21 7 . 36 . . . . . 13 3 . . . . Kinetic 8373 | 159 87 . 1270 90 . 41 429 . 128 . 74 4091 23 . . 588 1393 Thermal 11044 | . 75 . 289 122 . 165 306 1387 545 102 2713 1901 980 . 37 1168 1254 Explosive 8088 | . . 426 1096 138 . . 537 160 256 . 727 1538 815 . . . 2395 Electromagnetic 6715 | . . . . . . . . . . . 250 379 . . . 1971 4115 Impact . | . . . . . . . . . . . . . . . . . . Slashing 511 | . . . . . . . . . . . 100 . . . . . 411 Piercing . | . . . . . . . . . . . . . . . . . . Highest Corruption 16 | . . . . . . . . 2 2 2 2 9 15 15 16 9 9 Average Corruption 6 | . . . . . . . . 1 2 2 1 4 11 15 15 3 4 Corruption Purged 10 | . . . . . . . . . . . . . . . . 6 4 Corruption Blocked . | . . . . . . . . . . . . . . . . . . Effects 197 | . . . . . . . . 15 14 1 . 38 59 46 3 3 18 Message Errors 40 | . . . . . . . . 5 2 . . 5 9 10 1 2 6 Matter Fused 49 | . . . . . . . . 4 7 1 . 9 14 10 . . 4 Heat Flow Errors 19 | . . . . . . . . 3 1 . . 5 4 3 . 1 2 Energy Discharges 24 | . . . . . . . . . 2 . . 6 8 8 . . . Parts Fused 5 | . . . . . . . . . . . . . 4 . . . 1 Data Loss (minor) 33 | . . . . . . . . 1 . . . 6 10 11 1 . 4 Data Loss (major) 9 | . . . . . . . . 2 . . . . 5 2 . . . Misfires 10 | . . . . . . . . . 1 . . 3 2 2 1 . 1 Alerts 4 | . . . . . . . . . 1 . . . 3 . . . . Weapon Failures 4 | . . . . . . . . . . . . 4 . . . . . Overload Shots . | . . . . . . . . . . . . . . . . . . Overflow Damage 932 | . . 2 12 10 . . 12 38 . 21 169 181 38 . . 41 408 Projectiles 245 | . . . 8 . . . 2 38 . 21 19 85 23 . . 17 32 Explosions 543 | . . 2 4 10 . . 10 . . . 80 96 15 . . 24 302 Melee 144 | . . . . . . . . . . . 70 . . . . . 74 Knockbacks 87 | . . . 2 1 . 1 . . . . . 48 2 . . 9 24 Impact 2 | . . . . 1 . 1 . . . . . . . . . . . Kinetic 81 | . . . 2 . . . . . . . . 45 2 . . 9 23 Secondary 4 | . . . . . . . . . . . . 3 . . . . 1 Self-Inflicted Damage 684 | . . 10 92 . . . 131 37 49 . 167 61 . . . 20 117 Shots 29 | . . 2 4 . . . 4 1 1 . 9 1 . . . 1 6 Rammed 11 | . . . 3 1 . 5 . . . . . 1 1 . . . . Targets Rammed 14 | . . 1 5 1 . 5 . . . . . 1 1 . . . . Kicked 1 | . . 1 . . . . . . . . . . . . . . . Crushed 2 | . . . 2 . . . . . . . . . . . . . . Highest Temperature 342 | . 54 . 342 3 . 21 234 199 86 . 201 323 239 188 . 120 190 Average Temperature 80 | . 18 . 84 3 . 7 136 35 45 . 84 89 106 91 . 52 59 Received Heat Transfer 3945 | . 27 . 441 60 . 81 738 258 328 . 236 795 264 . 9 283 425 Effects 5 | . . . . . . . 1 . . . . 4 . . . . . Shutdowns 1 | . . . . . . . . . . . . 1 . . . . . Energy Bleed 2 | . . . . . . . 1 . . . . 1 . . . . . Interference 2 | . . . . . . . . . . . . 2 . . . . . Siege Activations 12 | . . . . . . . . . . . . 11 . . . . 1 Total Turns 211 | . . . . . . . . . . . . 198 . . . . 13 Longest Duration 36 | . . . . . . . . . . . . 36 . . . . 13 Martial Activations . | . . . . . . . . . . . . . . . . . . Shielding Activations . | . . . . . . . . . . . . . . . . . . Robots Disrupted 1 | . . . . . . . . . . . . 1 . . . . . Combat Hostiles 1 | . . . . . . . . . . . . 1 . . . . . Robots Corrupted 18 | . . . . . . . . . . . . . . . . 6 12 Combat Hostiles 18 | . . . . . . . . . . . . . . . . 6 12 Parts Fried 45 | . . . . . . . . . . . . 2 . . . 16 27 Impact Corruptions 1 | . . . . . . . . . . . . 1 . . . . . Robots Melted 5 | . . . . . . . . . . . 1 3 1 . . . . Combat Hostiles 5 | . . . . . . . . . . . 1 3 1 . . . . Parts Melted 33 | . . . 1 1 . 1 . 3 1 1 12 10 1 . . . 2 Heat Transferred 13773 | . 222 . 518 222 . 296 518 1961 777 148 3055 2470 1140 . 50 1207 1189 Parts Sabotaged 4 | . . . . . . . . . . . . . . . . . 4 Parts Stolen . | . . . . . . . . . . . . . . . . . . Parts Stripped . | . . . . . . . . . . . . . . . . . . Power Chain Reactions 9 | . . . . . . . . . . . 1 1 . . . 2 5 Alert | -11 -10 -10 -9 -9 -9 -8 -8 -7 -7 -7 -6 -5 -5 -5 -5 -4 -4 ------- Run | Yrd Mat Min Mat Min Exi Min Mat Fac Low Low Fac Fac Upp Upp War Pro Fac Maximum Alert Level 5 | . . 1 1 . . . . . . . 2 4 . . . . 5 Low Security (%) 71 | 100 100 96 73 100 . 100 100 100 . . 44 60 . . . . . Level 1 8 | . . 3 26 . . . . . . . 21 9 . . . . . Level 2 4 | . . . . . . . . . . . 34 3 . . . . 9 Level 3 4 | . . . . . . . . . . . . 7 . . . . 28 Level 4 7 | . . . . . . . . . . . . 19 . . . . 23 Level 5 3 | . . . . . . . . . . . . . . . . . 37 High Security . | . . . . . . . . . . . . . . . . . . Max Security . | . . . . . . . . . . . . . . . . . . Peak Influence 2344 | 5 20 201 334 128 . 71 196 118 . . 500 1485 . . . . 2344 Initial 981 | . . . 55 128 . . 24 43 . . 23 122 . . . . 981 Average 305 | . 1 93 159 37 . 2 87 43 . . 222 425 . . . . 1411 Influence Increases 9779 | 15 36 332 973 133 . 85 345 475 150 . 739 2210 425 21 . 776 3064 Destroy 0b10 Robot/C 5080 | . 20 220 620 120 . 60 240 260 100 . 400 1260 340 20 . 580 840 Destroy 0b10 Robot/NC 445 | 15 10 5 55 . . . 20 40 . . 60 80 . . . 20 140 Destroy Leader 946 | . 4 40 172 10 . 10 44 82 20 . 84 246 40 . . 40 154 Allied During Kill 99 | . . 29 8 . . . . . . . . . . 1 . 61 . Successful Hack 123 | . . . 5 . . . . 59 . . 9 50 . . . . . Disable Machine 630 | . . . 45 . . 15 15 15 . . 105 120 . . . . 315 Anti-Garrison Action 200 | . . . . . . . . . . . . . . . . . 200 Destroy Structure 726 | . 2 23 53 3 . . 26 19 . . 66 274 . . . . 260 Advance Influence 900 | . . . . . . . . . . . . . . . . . 900 Lose Combat Pursuer 630 | . . 15 15 . . . . . 30 . 15 180 45 . . 75 255 Influence Decreases 7476 | 15 36 189 786 463 . 22 312 536 113 35 525 978 1119 592 218 646 891 Entered New Map 1520 | . . . 88 202 . . 39 53 14 15 14 129 549 150 218 . 49 Time Decay 4768 | 15 36 169 618 251 . 12 197 451 79 20 291 599 550 422 . 576 482 Search Patrol Dispatched 150 | . . . . . . . . . . . . . . . . . 150 Lost Part 628 | . . . 40 10 . 10 76 32 20 . 70 90 20 . . 50 210 Lost Ally 110 | . . 20 40 . . . . . . . . 10 . 20 . 20 . Purge Threat 300 | . . . . . . . . . . . 150 150 . . . . . Squads Dispatched 51 | . 1 . 3 . . . 2 6 . . 7 17 . . . 1 14 Investigation 10 | . . . 2 . . . 1 . . . 2 2 . . . . 3 Extermination 13 | . . . . . . . . 3 . . 1 7 . . . . 2 Reinforcement 16 | . 1 . 1 . . . 1 3 . . 4 4 . . . . 2 Assault 11 | . . . . . . . . . . . . 4 . . . 1 6 Garrison 1 | . . . . . . . . . . . . . . . . . 1 Intercept . | . . . . . . . . . . . . . . . . . . Searches Triggered 1 | . . . . . . . . . . . . . . . . . 1 Construction Impeded 6 | . . . . . . . . . . . 2 2 . . . . 2 Haulers Reinforced 1 | . . . . . . . . . . . . 1 . . . . . Active Scanning Responses . | . . . . . . . . . . . . . . . . . . Cargo Convoy Interrupts 2 | . . . . . . . . 1 . . . . . . . . 1 Stealth | -11 -10 -10 -9 -9 -9 -8 -8 -7 -7 -7 -6 -5 -5 -5 -5 -4 -4 --------- Run | Yrd Mat Min Mat Min Exi Min Mat Fac Low Low Fac Fac Upp Upp War Pro Fac Distress Signals 16 | . . . 3 . . . 4 1 . . 1 4 . . . 1 2 Communications Jammed 39 | . . . . . . . . . . . . 23 . . . . 16 Distress Signals 39 | . . . . . . . . . . . . 23 . . . . 16 Times Spotted 377 | . 9 9 45 7 . 3 17 20 11 . 24 89 17 1 15 37 73 Peak Tracking Total 15 | . 2 3 7 4 . 3 9 3 5 . 6 12 7 1 10 6 15 Tactical Retreats 24 | . . 1 1 . . . . . 1 . 1 8 3 . . 4 5 Traps | -11 -10 -10 -9 -9 -9 -8 -8 -7 -7 -7 -6 -5 -5 -5 -5 -4 -4 ------- Run | Yrd Mat Min Mat Min Exi Min Mat Fac Low Low Fac Fac Upp Upp War Pro Fac Traps Triggered 8 | . . . 2 . . . . 1 . . 1 1 . . 1 . 2 Indirectly 2 | . . . . . . . . . . . . . . . . . 2 Trap Hack Attempts . | . . . . . . . . . . . . . . . . . . Triggered . | . . . . . . . . . . . . . . . . . . Disarmed . | . . . . . . . . . . . . . . . . . . Reprogrammed . | . . . . . . . . . . . . . . . . . . Reused . | . . . . . . . . . . . . . . . . . . Traps Extracted . | . . . . . . . . . . . . . . . . . . Installed . | . . . . . . . . . . . . . . . . . . Triggered . | . . . . . . . . . . . . . . . . . . Machines | -11 -10 -10 -9 -9 -9 -8 -8 -7 -7 -7 -6 -5 -5 -5 -5 -4 -4 ---------- Run | Yrd Mat Min Mat Min Exi Min Mat Fac Low Low Fac Fac Upp Upp War Pro Fac Machines Disabled 43 | . . . 3 . . 1 1 1 . . 7 8 1 . . . 21 Max in Single Turn 15 | . . . 1 . . 1 1 1 . . 4 3 1 . . . 15 Garrison Access 2 | . . . . . . . . . . . . 1 . . . . 1 Machines Repaired . | . . . . . . . . . . . . . . . . . . Machines Dismantled . | . . . . . . . . . . . . . . . . . . Machines Sabotaged . | . . . . . . . . . . . . . . . . . . Overloaded Fab Kills . | . . . . . . . . . . . . . . . . . . Hacking | -11 -10 -10 -9 -9 -9 -8 -8 -7 -7 -7 -6 -5 -5 -5 -5 -4 -4 --------- Run | Yrd Mat Min Mat Min Exi Min Mat Fac Low Low Fac Fac Upp Upp War Pro Fac Machines Accessed 41 | . 3 . 4 . 4 . 2 8 . . 8 9 . . . . 3 Terminals 29 | . 3 . 4 . . . 1 6 . . 7 7 . . . . 1 Fabricators 1 | . . . . . . . . . . . . . . . . . 1 Repair Stations 2 | . . . . . . . . 2 . . . . . . . . . Recycling Units . | . . . . . . . . . . . . . . . . . . Scanalyzers 3 | . . . . . . . 1 . . . 1 1 . . . . . Garrison Access 2 | . . . . . . . . . . . . 1 . . . . 1 Total Hacks 127 | . 7 . 7 . 27 . 6 20 . . 23 28 . . . . 9 Successful 63 | . 2 . 1 . 27 . 2 9 . . 9 11 . . . . 2 Failed 64 | . 5 . 6 . . . 4 11 . . 14 17 . . . . 7 Catastrophic 16 | . 2 . 2 . . . 2 1 . . 3 3 . . . . 3 Database Lockouts . | . . . . . . . . . . . . . . . . . . Manual 55 | . 4 . 3 . 1 . . 12 . . 11 21 . . . . 3 Terminals 77 | . 7 . 7 . . . 3 16 . . 18 24 . . . . 2 Fabricators 5 | . . . . . . . . . . . . . . . . . 5 Repair Stations 4 | . . . . . . . . 4 . . . . . . . . . Recycling Units . | . . . . . . . . . . . . . . . . . . Scanalyzers 10 | . . . . . . . 3 . . . 5 2 . . . . . Garrison Access 4 | . . . . . . . . . . . . 2 . . . . 2 Terminal Hacks 40 | . 2 . 1 . 27 . . 2 . . 2 6 . . . . . Record 26 | . . . . . 26 . . . . . . . . . . . . Robot Analysis 1 | . . . . . . . . . . . 1 . . . . . . Prototype ID Bank 3 | . . . 1 . . . . . . . . 2 . . . . . Branch Access Points 2 | . . . . . . . . 1 . . . 1 . . . . . Terminal Index 1 | . . . . . . . . . . . . 1 . . . . . Alert Level 1 | . . . . . . . . 1 . . . . . . . . . Unreport Threat 2 | . . . . . . . . . . . 1 1 . . . . . Locate Traps 1 | . 1 . . . . . . . . . . . . . . . . Recall Reinforcements 1 | . . . . . . . . . . . . 1 . . . . . Hauler Manifests 1 | . 1 . . . . . . . . . . . . . . . . Proto ID Catalog 1 | . . . . . 1 . . . . . . . . . . . . Fabricator Hacks 1 | . . . . . . . . . . . . . . . . . 1 Load Schematic 1 | . . . . . . . . . . . . . . . . . 1 Repair Station Hacks 3 | . . . . . . . . 3 . . . . . . . . . Scan Component 2 | . . . . . . . . 2 . . . . . . . . . Repair 1 | . . . . . . . . 1 . . . . . . . . . Recycling Unit Hacks . | . . . . . . . . . . . . . . . . . . Scanalyzer 8 | . . . . . . . 2 . . . 5 1 . . . . . Insert Component 4 | . . . . . . . 1 . . . 2 1 . . . . . Analyze 4 | . . . . . . . 1 . . . 3 . . . . . . Garrison Access Hacks . | . . . . . . . . . . . . . . . . . . Unauthorized Hacks 11 | . . . . . . . . 4 . . 2 4 . . . . 1 Terminals 10 | . . . . . . . . 4 . . 2 4 . . . . . Assimilate 1 | . . . . . . . . . . . . 1 . . . . . Botnet 9 | . . . . . . . . 4 . . 2 3 . . . . . Fabricators . | . . . . . . . . . . . . . . . . . . Repair Stations . | . . . . . . . . . . . . . . . . . . Recycling Units . | . . . . . . . . . . . . . . . . . . Scanalyzers . | . . . . . . . . . . . . . . . . . . Garrison Access 1 | . . . . . . . . . . . . . . . . . 1 Jam 1 | . . . . . . . . . . . . . . . . . 1 Data Cores Recovered 2 | . . . . . . . . 1 . . . 1 . . . . . Used . | . . . . . . . . . . . . . . . . . . Hacking Detections 35 | . 3 . 4 . . . 2 8 . . 6 9 . . . . 3 Full Trace Events 8 | . . . 1 . . . 1 . . . 2 2 . . . . 2 Feedback Events 1 | . . . . . . . . . . . . . . . . . 1 Corruption 1 | . . . . . . . . . . . . . . . . . 1 Feedback Blocked . | . . . . . . . . . . . . . . . . . . Robot Schematics Acquired . | . . . . . . . . . . . . . . . . . . Robots Built . | . . . . . . . . . . . . . . . . . . Authchips . | . . . . . . . . . . . . . . . . . . Time . | . . . . . . . . . . . . . . . . . . Total Robot Build Rating . | . . . . . . . . . . . . . . . . . . Part Schematics Acquired 3 | . . . . . . . 1 . . . 2 . . . . . . Parts Built . | . . . . . . . . . . . . . . . . . . Authchips . | . . . . . . . . . . . . . . . . . . Time . | . . . . . . . . . . . . . . . . . . Total Part Build Rating . | . . . . . . . . . . . . . . . . . . Parts Repaired 1 | . . . . . . . . 1 . . . . . . . . . Time 13 | . . . . . . . . 13 . . . . . . . . . Parts Recycled . | . . . . . . . . . . . . . . . . . . Recycled Matter . | . . . . . . . . . . . . . . . . . . Retrieved Matter . | . . . . . . . . . . . . . . . . . . Retrieved Components . | . . . . . . . . . . . . . . . . . . Parts Scanalyzed 4 | . . . . . . . 1 . . . 2 1 . . . . . Part Schematics Acquired 3 | . . . . . . . 1 . . . 2 . . . . . . Parts Damaged 1 | . . . . . . . . . . . 1 . . . . . . Bothacking | -11 -10 -10 -9 -9 -9 -8 -8 -7 -7 -7 -6 -5 -5 -5 -5 -4 -4 ------------ Run | Yrd Mat Min Mat Min Exi Min Mat Fac Low Low Fac Fac Upp Upp War Pro Fac Used RIF Installer . | . . . . . . . . . . . . . . . . . . Robots Hacked . | . . . . . . . . . . . . . . . . . . Non-combat . | . . . . . . . . . . . . . . . . . . Combat . | . . . . . . . . . . . . . . . . . . Robot Hacks Applied . | . . . . . . . . . . . . . . . . . . Relay Couplers Released 4 | . . . . . . . . . . . . 1 . . . . 3 Machine Destruction 1 | . . . . . . . . . . . . 1 . . . . . Programmers 3 | . . . . . . . . . . . . . . . . . 3 Fabnet Peak Effective % . | . . . . . . . . . . . . . . . . . . Robots Rewired 4 | . . . . . . . . . . . . . 2 . . 2 . Allies Hacked 1 | . . . . . . . . . . . . 1 . . . . . Hacks Repelled . | . . . . . . . . . . . . . . . . . . Allies | -11 -10 -10 -9 -9 -9 -8 -8 -7 -7 -7 -6 -5 -5 -5 -5 -4 -4 -------- Run | Yrd Mat Min Mat Min Exi Min Mat Fac Low Low Fac Fac Upp Upp War Pro Fac Total Allies 8 | . . 3 . . . . . . . . . 1 2 . . 2 . Largest Group 3 | . . 3 2 . . . . . . . . 1 2 2 1 2 . Highest-Rated Group 60 | . . 40 32 . . . . . . . . 26 59 59 30 60 . Highest-Rated Ally 30 | . . 16 16 . . . . . . . . 26 30 30 30 30 . Total Orders 2 | . . . . . . . . . . . . . . 2 . . . ROAM 1 | . . . . . . . . . . . . . . 1 . . . FOLLOW 1 | . . . . . . . . . . . . . . 1 . . . Ally Attacks 34 | . . 6 15 . . . . . . . . . . 3 . 10 . Total Damage 623 | . . 55 172 . . . . . . . . . . 96 . 300 . Kills 11 | . . 4 1 . . . . . . . . . . 1 . 5 . Allies Corrupted . | . . . . . . . . . . . . . . . . . . Allies Melted . | . . . . . . . . . . . . . . . . . . Intel | -11 -10 -10 -9 -9 -9 -8 -8 -7 -7 -7 -6 -5 -5 -5 -5 -4 -4 ------- Run | Yrd Mat Min Mat Min Exi Min Mat Fac Low Low Fac Fac Upp Upp War Pro Fac Active Infowar (turns) 1826 | 117 301 . . . . . . 214 . . . 582 . . . . 612 Optics 292 | . . . . . . . . 214 . . . . . . . . 78 Sensors 2 | . . . . . . . . . . . . . . . . . 2 Seismic 418 | 117 301 . . . . . . . . . . . . . . . . Jamming 1116 | . . . . . . . . . . . . 582 . . . . 534 Robot Analysis Total 1 | . . . . . . . . . . . 1 . . . . . . Derelict Logs Recovered 6 | . . 2 . 1 . . . . 1 . . . . 1 . 1 . Drone Launches . | . . . . . . . . . . . . . . . . . . Drone Recoveries . | . . . . . . . . . . . . . . . . . . Exploration | -11 -10 -10 -9 -9 -9 -8 -8 -7 -7 -7 -6 -5 -5 -5 -5 -4 -4 ------------- Run | Yrd Mat Min Mat Min Exi Min Mat Fac Low Low Fac Fac Upp Upp War Pro Fac Turns Passed 21610 | 219 368 384 2068 836 923 1254 486 1899 890 53 1152 3919 1592 1025 1241 2044 1257 Spaces Moved 9175 | 139 261 307 635 253 289 379 185 1098 325 18 453 1446 717 621 637 988 424 Core 95 | 13 . . . . . . . . . . . . . . . . 82 Treads 6807 | . . . 547 253 289 379 96 172 325 18 228 1195 717 621 637 988 342 Legs 782 | 126 261 307 88 . . . . . . . . . . . . . . Wheels 1491 | . . . . . . . 89 926 . . 225 251 . . . . . Hover . | . . . . . . . . . . . . . . . . . . Flight . | . . . . . . . . . . . . . . . . . . Fastest Speed 50 | 50 120 120 120 320 320 320 115 115 250 250 160 130 163 163 163 163 50 Average Speed 200 | 113 120 120 273 320 320 320 180 145 250 250 205 198 200 163 163 189 208 Slowest Speed 650 | 120 120 120 320 320 320 320 240 650 410 250 250 320 243 163 163 247 247 Overloaded Moves . | . . . . . . . . . . . . . . . . . . Propulsion Burnouts . | . . . . . . . . . . . . . . . . . . Robots Hopped . | . . . . . . . . . . . . . . . . . . Potential Cave-ins . | . . . . . . . . . . . . . . . . . . Cave-ins Triggered . | . . . . . . . . . . . . . . . . . . Exploration Rate (%) 50 | 5 57 80 61 54 70 86 18 32 50 2 16 42 80 72 73 98 17 Regions Visited 17 Branch Regions 10 Pre-discovered Areas 2 | . . 1 . 1 . . . . . . . . . . . . . Known Exits Taken 5 | . . 1 . . . . . 1 1 . . 1 . . . 1 . Unknown Exits Taken 12 | 1 1 . 1 1 1 1 1 . . 1 1 . 1 1 1 . . Scrap Searched 9 | . . 1 . 1 . 1 . . . . . . 4 1 . 1 . Spaces Dug 90 | . 1 . . . . . . 9 . . 8 50 . . . . 22 Terrain Destroyed 630 | . 1 30 48 3 . . 30 18 19 . 61 153 75 2 1 33 156 Melee 62 | . . . . . . . . 9 . . 8 36 . . . . 9 Projectile 101 | . 1 . . . . . 3 1 4 . 7 34 24 2 1 11 13 AOE 467 | . . 30 48 3 . . 27 8 15 . 46 83 51 . . 22 134 Terrain Rammed . | . . . . . . . . . . . . . . . . . . Walls Destroyed . | . . . . . . . . . . . . . . . . . . Machines Disabled . | . . . . . . . . . . . . . . . . . . Actions | -11 -10 -10 -9 -9 -9 -8 -8 -7 -7 -7 -6 -5 -5 -5 -5 -4 -4 --------- Run | Yrd Mat Min Mat Min Exi Min Mat Fac Low Low Fac Fac Upp Upp War Pro Fac Total 11245 | 164 285 317 801 263 289 395 272 1300 365 21 582 2201 820 635 843 1083 609 Wait 751 | . . 2 29 . . . 4 92 15 . 20 358 15 4 183 13 16 Move 9158 | 138 260 306 634 252 288 378 184 1097 324 17 452 1445 716 620 636 987 424 Hop . | . . . . . . . . . . . . . . . . . . Pick Up 135 | 1 7 . 14 . 1 3 12 10 . . 16 37 7 4 7 5 11 Fast Attach 43 | 7 . . 1 . . . 5 6 3 . 2 13 2 . 1 1 2 Attach 81 | . . . 5 1 . 1 8 3 4 . 8 25 2 1 . 6 17 Detach 22 | . . . . . . . 3 . . . 3 11 2 . 1 . 2 Swap 205 | . 4 2 23 1 . . 13 14 2 1 21 69 9 3 4 7 32 Drop 104 | . . 1 6 . . . 10 11 . . 8 44 4 3 9 3 5 Fire 588 | 18 14 5 84 8 . 8 33 50 17 3 37 161 23 . 2 44 81 Melee 75 | . . . . . . . . 9 . . 10 37 . . . . 19 Ram . | . . . . . . . . . . . . . . . . . . Kick 1 | . . 1 . . . . . . . . . . . . . . . Crush 13 | . . . 5 1 . 5 . . . . . 1 1 . . . . Escape Stasis 10 | . . . . . . . . 8 . . 2 . . . . . . Rewire 59 | . . . . . . . . . . . 3 . 39 . . 17 . Trap . | . . . . . . . . . . . . . . . . . . Miscellaneous . | . . . . . . . . . . . . . . . . . . Route ------- -11/Scrapyard -10/Materials (discovered 2 exits: *Mat / [*Min]) -10/Mines (discovered 2 exits: *Mat / [*Sub]) -9/Materials (discovered 2 exits: *Mat / [*Min]) -9/Mines -9/Exiles -8/Mines -8/Materials -7/Factory (discovered 2 exits: *Low x2) -7/Lower Caves -7/Lower Caves -6/Factory -5/Factory (discovered 3 exits: *Fac / *Upp x2) -5/Upper Caves -5/Upper Caves (discovered 2 exits: *Fac / *War) -5/Warlord -4/Proximity Caves -4/Factory History --------- Turn | Location | Event 2 | -11/Scrapyard | Met Revision 17 7 | -11/Scrapyard | Discovered new exit (range 15) 220 | -11/Scrapyard | Entered Materials 308 | -10/Materials | Build established: Mutant 351 | -10/Materials | Discovered new exit (range 12) 458 | -10/Materials | Discovered new exit (range 12) 588 | -10/Materials | Entered Mines 643 | -10/Mines | Discovered new exit (range 6) 673 | -10/Mines | Identified exit to Materials 733 | -10/Mines | Assisted by bots powering up and referring to "LRC-V3" 957 | -10/Mines | Found a Scrap Suit stashed away for nefarious purposes 972 | -10/Mines | Entered Materials 972 | -9/Materials | Accompanied by 2 allies 972 | -9/Materials | Evolved 2 slots: Utility x2 2168 | -9/Materials | Discovered new exit (range 15) 2914 | -9/Materials | Discovered new exit (range 9) 3040 | -9/Materials | Entered Mines 3052 | -9/Mines | Met a Derelict bent on vengeance 3248 | -9/Mines | Learned location of Zion (-6) 3860 | -9/Mines | Deemed a non-threat by the Exiles lab entrance 3860 | -9/Mines | Discovered new exit (range 5) 3876 | -9/Mines | Entered Exiles 3956 | -9/Exiles | Met 8R-AWN 4011 | -9/Exiles | Met EX-HEX 4100 | -9/Exiles | Met EX-BIN 4136 | -9/Exiles | Aligned with FarCom system 4139 | -9/Exiles | Given EX-Vault access code 4331 | -9/Exiles | Opened EX-Vault 4350 | -9/Exiles | Found Longsword +1 4412 | -9/Exiles | Warned to stay clear of 0b10 Research branches 4505 | -9/Exiles | Met EX-DEC 4770 | -9/Exiles | Discovered new exit (range 10) 4799 | -9/Exiles | Left Exiles lab with Longsword +1 4799 | -9/Exiles | Entered Mines 5943 | -8/Mines | Discovered new exit (range 9) 6053 | -8/Mines | Entered Materials 6053 | -8/Materials | Evolved 2 slots: Propulsion x2 6304 | -8/Materials | Lost 8 parts (1p2n3u2w) 6305 | -8/Materials | Destroyed 7 combat bots 6507 | -8/Materials | Discovered new exit (range 7) 6539 | -8/Materials | Entered Factory 6539 | -7/Factory | Evolved 2 slots: Power x1, Utility x1 6971 | -7/Factory | Repaired Grenade Launcher 7457 | -7/Factory | Cargo convoy interrupted 7838 | -7/Factory | Identified exit to Lower Caves 8438 | -7/Factory | Entered Lower Caves 8764 | -7/Lower Caves | Identified exit to Lower Caves 9091 | -7/Lower Caves | Attracted the attention of an 0b10 checkpoint 9257 | -7/Lower Caves | Spotted B-75 Beast 9328 | -7/Lower Caves | Entered another Lower Caves area 9337 | -7/Lower Caves | Discovered new exit (range 6) 9381 | -7/Lower Caves | Entered Factory 9381 | -6/Factory | Evolved 2 slots: Propulsion x1, Weapon x1 10117 | -6/Factory | Lost 3 parts (1p2u) 10512 | -6/Factory | Discovered new exit (range 3) 10533 | -6/Factory | Entered another Factory area 10533 | -5/Factory | Evolved 2 slots: Power x1, Utility x1 12175 | -5/Factory | Identified exit to Upper Caves 12661 | -5/Factory | Discovered new exit (range 4) 13262 | -5/Factory | Destroyed 9 combat bots 13342 | -5/Factory | Destroyed 7 combat bots 13489 | -5/Factory | Build established: Tank 13753 | -5/Factory | Found Launcher Loader 13756 | -5/Factory | Destroyed 7 combat bots 14133 | -5/Factory | First assault squad dispatched 14434 | -5/Factory | Lost 5 parts (1p2n2u) 14452 | -5/Factory | Entered Upper Caves 14576 | -5/Upper Caves | Found DCF Scrap (13 items) 14671 | -5/Upper Caves | System corruption reached 10% 14861 | -5/Upper Caves | Spotted B-75 Beast 14978 | -5/Upper Caves | Attracted the attention of an 0b10 checkpoint 15377 | -5/Upper Caves | Discovered new exit (range 6) 15776 | -5/Upper Caves | Attracted the attention of an 0b10 outpost 16044 | -5/Upper Caves | Entered another Upper Caves area 16044 | -5/Upper Caves | Accompanied by 2 allies 16064 | -5/Upper Caves | Learned location of 1 exit from Proximity Caves 16084 | -5/Upper Caves | Discovered new exit (range 15) 16778 | -5/Upper Caves | Attracted the attention of an 0b10 checkpoint 17043 | -5/Upper Caves | Discovered new exit (range 16) 17069 | -5/Upper Caves | Entered Warlord 17069 | -5/Warlord | Accompanied by 1 ally 17125 | -5/Warlord | System corruption cleaned by Quarantine Array 17335 | -5/Warlord | Met Warlord 17347 | -5/Warlord | Warlord's base attacked by MAIN.C 17466 | -5/Warlord | Found Prototype Special Weapon 17466 | -5/Warlord | Identified RU-N14's Throwing Claymores v3 17697 | -5/Warlord | Warlord forces counterattacked 18022 | -5/Warlord | Warlord base infiltrated, sounded retreat 18023 | -5/Warlord | Enhanced Grunt warped into view 18023 | -5/Warlord | Enhanced Grunt warped into view 18023 | -5/Warlord | Enhanced Grunt warped into view 18023 | -5/Warlord | Enhanced Demolisher warped into view 18023 | -5/Warlord | Enhanced Demolisher warped into view 18023 | -5/Warlord | Enhanced Demolisher warped into view 18027 | -5/Warlord | Spotted Striker 18027 | -5/Warlord | Spotted Striker 18289 | -5/Warlord | Discovered new exit (range 14) 18310 | -5/Warlord | Entered Proximity Caves 18311 | -4/Proximity Caves | Identified exit to Factory 18397 | -4/Proximity Caves | Spotter reported a threat 18415 | -4/Proximity Caves | Attracted the attention of an 0b10 outpost 18506 | -4/Proximity Caves | Spotter reported a threat 18560 | -4/Proximity Caves | Spotter reported a threat 18567 | -4/Proximity Caves | Spotter reported a threat 18614 | -4/Proximity Caves | Spotter reported a threat 18879 | -4/Proximity Caves | Learned 4 Research zone layouts 18897 | -4/Proximity Caves | Spotter reported a threat 18970 | -4/Proximity Caves | Attracted the attention of an 0b10 checkpoint 19182 | -4/Proximity Caves | Spotter reported a threat 19310 | -4/Proximity Caves | Spotter reported a threat 20354 | -4/Proximity Caves | Entered Factory 20354 | -4/Factory | Evolved 2 slots: Propulsion x1, Utility x1 20604 | -4/Factory | Search patrols dispatched 20659 | -4/Factory | Build established: Scavenger-Tank 20745 | -4/Factory | Garrison activated, responded to threat 20960 | -4/Factory | Destroyed 10 combat bots 21104 | -4/Factory | First assault squad dispatched 21267 | -4/Factory | Lost 4 parts (1p1u2w) 21512 | -4/Factory | Cargo convoy interrupted 21515 | -4/Factory | Spotted Striker 21532 | -4/Factory | Destroyed 12 combat bots 21538 | -4/Factory | Core integrity fell below 50% 21577 | -4/Factory | Core integrity fell below 20% 21592 | -4/Factory | Lost 16 parts (3p2n6u5w) 21597 | -4/Factory | Destroyed Striker 21611 | -4/Factory | Destroyed by P-70 Sage with Tesla Rifle Last Messages --------------- 21554_ Striker Prototype Protection severed. 21554_ K-01 Serf collects debris. 21560_ P-70 Sage resets Striker, system corruption cleaned. 21561_ Slug penetrates Wall. 21561_ Penetrated by Slug. 21561_ Adv. Signal Interpreter destroyed. 21569_ System corrupted: Longsword +1 fused. 21573_ Slug penetrates K-01 Serf. 21573_ K-01 Serf destroyed. 21587_ Acquired Target Analyzer. 21591_ Connecting with Terminal... 21591_ ALERT: Suspicious activity at Terminal F005. Dispatching Investigation squad. 21597_ Striker destroyed. 21598_ OLIS>,:V